bitfinex-derivatives/quotes_SOLF0:USTF0_20250411
["timestamp","ask_amount","ask_price","bid_price","bid_amount"]
[1744338759516,8.6761,115.35,115.32,2.2157]
[1744338760117,8.6769,115.34,115.32,2.2157]
[1744338760418,39.08,115.35,115.31,8.1]
[1744338760617,0.06409117,115.34,115.32,0.05586989]
[1744338761020,0.06409117,115.34,115.32,8.73356989]
[1744338761211,39.08,115.38,115.32,0.05586989]
[1744338761716,8.6725,115.4,115.33,17.50779454]
[1744338761912,8.6725,115.4,115.34,4.5106]
[1744338762312,0.05899621,115.38,115.36,8.73447378]
[1744338762513,39.26,115.43,115.36,56.76779454]
[1744338762919,47.9303,115.43,115.39,8.6723]
[1744338763917,0.05694716,115.42,115.4,0.05812255]
[1744338764311,0.05694716,115.42,115.4,8.72982255]
[1744338765223,0.05694716,115.42,115.4,0.05812255]
[1744338765414,8.6683,115.46,115.4,0.05812255]
[1744338765718,39.26,115.48,115.4,2.3272]
[1744338765922,8.6674,115.47,115.43,8.6696]
[1744338766416,8.6674,115.47,115.44,8.6691]
[1744338766612,0.05798517,115.46,115.44,8.72666384]
[1744338767523,0.05798517,115.46,115.44,0.05756384]
[1744338768825,8.6685,115.45,115.44,0.05756384]
[1744338769118,0.05798517,115.46,115.44,0.05756384]
[1744338769421,8.72628517,115.46,115.44,0.05756384]
[1744338770916,0.05798517,115.46,115.44,0.05756384]
[1744338773126,39.26,115.52,115.44,39.31756384]
[1744338773422,39.26,115.55,115.44,43.6876]
[1744338773618,8.6636,115.52,115.47,8.6663]
[1744338773819,39.26,115.55,115.44,43.6876]
[1744338774223,0.06264044,115.51,115.48,8.72412933]
[1744338774518,0.06264044,115.51,115.48,8.6661]
[1744338774720,0.06264044,115.51,115.49,17.50779454]
[1744338774929,39.6131,115.58,115.49,17.50779454]
[1744338775226,39.6131,115.58,115.5,4.5152]
[1744338775525,39.6131,115.58,115.43,37.08779454]
[1744338775728,17.50779454,115.55,115.44,17.50779454]
[1744338776024,39.6131,115.58,115.45,41.4509]
[1744338776025,39.24,115.54,115.45,41.4509]
[1744338776219,0.06575371,115.51,115.48,0.06485252]
[1744338777129,0.06575371,115.51,115.5,8.6647]
[1744338778528,0.06575371,115.51,115.5,10.9142]
[1744338779027,0.06575371,115.51,115.49,2.0984]
[1744338779227,0.06575371,115.51,115.48,0.06485252]
[1744338779434,39.30575371,115.51,115.48,0.06485252]
[1744338779932,8.6651,115.5,115.48,0.06485252]
[1744338780134,39.30575371,115.51,115.48,0.06485252]
[1744338780631,8.6655,115.49,115.48,0.06485252]
[1744338782833,8.6682,115.46,115.43,19.58]
[1744338783330,39.24,115.48,115.43,19.58]
[1744338783832,8.6683,115.46,115.44,0.05816648]
[1744338784128,0.06434674,115.47,115.44,0.05816648]
[1744338784336,8.6683,115.46,115.44,0.05816648]
[1744338784831,0.06434674,115.47,115.44,0.05816648]
[1744338785027,2.2408,115.53,115.44,39.29816648]
[1744338785227,39.24,115.54,115.46,17.50779454]
[1744338785427,39.24,115.54,115.47,2.2981]
[1744338785827,8.6636,115.52,115.48,8.6661]
[1744338786029,39.24,115.54,115.47,2.2981]
[1744338786331,0.06409479,115.51,115.49,0.0553279]
[1744338786632,39.24,115.57,115.5,39.24]
[1744338787428,39.24,115.57,115.52,17.50779454]
[1744338787630,39.24,115.57,115.53,2.1745]
[1744338788533,8.6605,115.56,115.53,2.1745]
[1744338788833,39.24,115.57,115.52,0.0654648]
[1744338789735,8.6621,115.54,115.52,0.0654648]
[1744338790030,39.24,115.57,115.52,0.0654648]
[1744338790438,8.6614,115.55,115.52,0.0654648]
[1744338790834,39.24,115.57,115.52,0.0654648]
[1744338792340,8.6625,115.53,115.52,0.0654648]
[1744338792541,39.24,115.57,115.52,0.0654648]
[1744338792944,4.3102,115.56,115.52,0.0654648]
[1744338793140,4.789,115.56,115.47,39.22]
[1744338793346,4.789,115.56,115.44,46.0461]
[1744338793645,8.6652,115.5,115.46,8.6673]
[1744338794045,8.6652,115.5,115.44,46.0461]
[1744338794346,0.06385056,115.49,115.47,0.0594949]
[1744338794542,8.72955056,115.49,115.47,0.0594949]
[1744338794743,0.06385056,115.49,115.47,0.0594949]
[1744338795243,8.6662,115.48,115.47,0.0594949]
[1744338796747,39.40385056,115.49,115.43,19.58]
[1744338796945,39.34,115.49,115.43,19.58]
[1744338797843,8.6677,115.46,115.45,0.06270674]
[1744338798042,0.06513086,115.47,115.45,0.06270674]
[1744338800454,0.06513086,115.47,115.4,6.05657444]
[1744338800647,39.34,115.48,115.4,4.5492]
[1744338800847,8.6705,115.43,115.41,8.17]
[1744338801048,39.34,115.45,115.41,8.17]
[1744338801348,8.6707,115.42,115.41,8.17]
[1744338801744,0.06587439,115.43,115.4,0.05595343]
[1744338802049,39.34,115.42,115.36,45.87004588]
[1744338802650,4.2946,115.41,115.36,45.87004588]
[1744338802849,4.2946,115.41,115.37,16.4955]
[1744338803154,0.05700122,115.4,115.37,16.55309437]
[1744338803357,39.34,115.39,115.37,10.26959437]
[1744338803556,8.6737,115.38,115.37,10.26959437]
[1744338803955,8.6737,115.38,115.37,9.437e-05]
[1744338805658,8.66,115.38,115.27,45.87004588]
[1744338805851,17.50779454,115.36,115.27,45.87004588]
[1744338806053,8.6787,115.31,115.27,45.87004588]
[1744338806953,0.06018671,115.3,115.28,0.06320312]
[1744338808155,8.73938671,115.3,115.28,0.06320312]
[1744338808458,0.06018671,115.3,115.28,0.06320312]
[1744338810457,8.6796,115.29,115.28,0.06320312]
[1744338810657,39.38,115.29,115.23,8.71]
[1744338811058,8.6812,115.27,115.23,8.71]
[1744338811364,8.6812,115.27,115.22,15.1412]
[1744338811861,48.12673739,115.26,115.23,0.06259787]
[1744338812052,48.12673739,115.26,115.22,6.457]
[1744338812256,39.44453739,115.26,115.23,0.06038886]
[1744338815862,8.6834,115.24,115.23,0.06038886]
[1744338816863,8.6855,115.22,115.18,4.3982]
[1744338817058,48.0855,115.22,115.18,4.3982]
[1744338817462,39.4,115.22,115.18,13.0861]
[1744338817662,39.4,115.22,115.18,4.3982]
[1744338817862,0.06574288,115.21,115.19,0.0562242]
[1744338819861,8.75184288,115.21,115.19,0.0562242]
[1744338820056,0.06574288,115.21,115.19,0.0562242]
[1744338820766,0.06574288,115.21,115.14,8.75]
[1744338820967,39.4,115.22,115.14,8.75]
[1744338822178,0.05770671,115.19,115.14,8.75]
[1744338822365,38.64,115.18,115.14,8.75]
[1744338822765,8.69,115.16,115.11,15.2281]
[1744338822967,38.64,115.18,115.11,6.5354]
[1744338823266,38.64,115.18,115.08,102.15133501]
[1744338823468,0.05471963,115.16,115.13,0.05507915]
[1744338823769,8.6914,115.14,115.08,8.6955]
[1744338824069,38.64,115.14,115.05,64.25538914]
[1744338824265,0.06224296,115.12,115.1,0.06396875]
[1744338824766,8.6897,115.16,115.1,0.06396875]
[1744338824969,8.6897,115.16,115.08,56.14779454]
[1744338825170,38.64,115.17,115.08,56.14779454]
[1744338825973,0.05697977,115.14,115.12,8.6919]
[1744338826170,0.05697977,115.14,115.08,56.14779454]
[1744338826364,0.05697977,115.14,115.12,0.06401891]
[1744338826863,0.05697977,115.14,115.12,2.28321891]
[1744338827372,38.64,115.17,115.12,2.28321891]
[1744338827569,38.64,115.17,115.13,2.2518]
[1744338828571,0.0651255,115.16,115.13,2.2518]
[1744338828773,8.7549255,115.16,115.13,2.2518]
[1744338829075,0.0651255,115.16,115.13,2.2518]
[1744338829275,8.6902,115.15,115.13,2.2518]
[1744338829573,8.6902,115.15,115.12,2.28321891]
[1744338829774,0.0651255,115.16,115.12,2.28321891]
[1744338830475,8.6903,115.15,115.12,2.28321891]
[1744338831076,38.66,115.14,115.12,0.06401891]
[1744338831575,8.6917,115.13,115.12,0.06401891]
[1744338832076,38.72211747,115.14,115.12,0.06401891]
[1744338833170,687.5309,115.21,115.13,8.6917]
[1744338833373,38.66,115.2,115.13,2.1728]
[1744338833776,8.6892,115.17,115.13,10.8639]
[1744338834675,8.75456692,115.16,115.14,0.06397013]
[1744338835378,8.6902,115.15,115.14,0.06397013]
[1744338835577,0.06506692,115.16,115.14,0.06397013]
[1744338836078,8.75496692,115.16,115.14,0.06397013]
[1744338836978,8.6902,115.15,115.14,0.06397013]
[1744338837171,0.06506692,115.16,115.14,0.06397013]
[1744338837474,8.75516692,115.16,115.14,0.06397013]
[1744338837677,0.06506692,115.16,115.14,0.06397013]
[1744338838678,8.75486692,115.16,115.14,0.06397013]
[1744338838880,0.06506692,115.16,115.14,0.06397013]
[1744338839279,0.06506692,115.16,115.14,8.75457013]
[1744338839479,38.66,115.17,115.14,0.06397013]
[1744338840480,47.349,115.17,115.14,8.75487013]
[1744338840679,8.74715153,115.17,115.14,8.75487013]
[1744338840876,0.05815153,115.17,115.14,0.06397013]
[1744338841078,8.6875,115.19,115.15,8.6902]
[1744338841479,8.688,115.18,115.15,8.6902]
[1744338841674,687.4,115.21,115.13,2.1728]
[1744338841880,38.66,115.18,115.13,2.1728]
[1744338842182,8.6898,115.16,115.14,0.06597835]
[1744338842482,0.06232521,115.17,115.14,0.06597835]
[1744338842782,8.6894,115.16,115.14,0.06597835]
[1744338846189,8.75122521,115.17,115.14,0.06597835]
[1744338846678,8.6902,115.15,115.14,0.06597835]
[1744338847082,47.3502,115.15,115.14,0.06597835]
[1744338847482,8.6924,115.13,115.1,45.87004588]
[1744338847678,38.66,115.15,115.1,45.87004588]
[1744338848087,47.3502,115.15,115.1,45.87004588]
[1744338848285,38.66,115.15,115.1,45.87004588]
[1744338848586,0.05538541,115.14,115.11,0.06392409]
[1744338848885,0.05538541,115.14,115.12,8.692]
[1744338849094,0.05538541,115.14,115.11,0.06392409]
[1744338849388,8.74628541,115.14,115.11,0.06392409]
[1744338849586,8.74628541,115.14,115.11,8.75672409]
[1744338849881,0.05538541,115.14,115.11,0.06392409]
[1744338850086,17.50779454,115.19,115.14,8.6905]
[1744338850288,17.50779454,115.19,115.12,2.2989]
[1744338850585,17.50779454,115.19,115.11,8.6929]
[1744338850982,38.66,115.18,115.11,8.6929]
[1744338851184,8.6907,115.15,115.14,0.0591006]
[1744338851376,38.66,115.15,115.14,0.0591006]
[1744338851885,0.06250556,115.16,115.14,0.0591006]
[1744338852485,8.6902,115.15,115.14,0.0591006]
[1744338852682,0.06250556,115.16,115.14,0.0591006]
[1744338853388,8.6902,115.15,115.14,0.0591006]
[1744338853786,46.8702,115.15,115.14,0.0591006]
[1744338855889,8.75260556,115.16,115.14,0.0591006]
[1744338856089,0.06250556,115.16,115.14,0.0591006]
[1744338856391,8.6853,115.22,115.15,12.07237296]
[1744338856690,8.6853,115.22,115.16,12.80099696]
[1744338856890,8.6853,115.22,115.18,8.6875]
[1744338857590,0.05601281,115.21,115.19,0.06450604]
[1744338858284,38.18,115.2,115.19,0.06450604]
[1744338858780,46.8664,115.2,115.19,0.06450604]
[1744338859190,38.18,115.2,115.19,0.06450604]
[1744338859592,0.05601281,115.21,115.19,0.06450604]
[1744338862291,8.6864,115.2,115.19,0.06450604]
[1744338863780,8.6885,115.18,115.16,2.2961]
[1744338864191,38.18,115.2,115.16,2.2961]
[1744338864394,8.6877,115.19,115.16,2.2961]
[1744338864693,38.18,115.2,115.16,2.2961]
[1744338864995,0.05868129,115.19,115.17,0.06289683]
[1744338866595,8.74588129,115.19,115.17,0.06289683]
[1744338867695,8.6879,115.18,115.17,0.06289683]
[1744338868790,8.6902,115.15,115.14,8.86]
[1744338868998,8.6902,115.15,115.12,4.4876]
[1744338869591,8.6902,115.15,115.12,13.1797]
[1744338869895,8.6912,115.14,115.12,2.30821065]
[1744338870097,0.06344871,115.15,115.12,0.06441065]
[1744338870591,8.6917,115.13,115.12,0.06441065]
[1744338870795,46.8517,115.13,115.12,0.06441065]
[1744338873595,8.6939,115.11,115.07,10.9336]
[1744338873797,38.16,115.13,115.07,2.2377]
[1744338873998,38.18,115.12,115.06,2.2306]
[1744338874699,0.06268709,115.1,115.08,0.0650564]
[1744338875594,38.18,115.09,115.08,0.0650564]
[1744338875792,46.8747,115.09,115.08,0.0650564]
[1744338876399,38.18,115.09,115.05,8.89]
[1744338877599,38.18,115.09,115.06,0.06542979]
[1744338878193,46.8753,115.09,115.06,0.06542979]
[1744338878399,38.18,115.09,115.06,0.06542979]
[1744338878798,8.6959,115.08,115.06,0.06542979]
[1744338879701,38.18,115.09,115.06,0.06542979]
[1744338880602,17.50779454,115.08,115.06,0.06542979]
[1744338880900,8.6962,115.07,115.06,0.06542979]
[1744338881094,38.18,115.09,115.06,0.06542979]
[1744338881290,0.06064501,115.08,115.06,0.06542979]
[1744338881502,8.6962,115.07,115.06,0.06542979]
[1744338884301,8.75644501,115.08,115.06,0.06542979]
[1744338885907,8.6962,115.07,115.06,0.06542979]
[1744338888402,8.75654501,115.08,115.06,0.06542979]
[1744338889904,0.06064501,115.08,115.06,0.06542979]
[1744338890105,0.06064501,115.08,115.06,2.33862979]
[1744338891208,0.06064501,115.08,115.06,11.03522979]
[1744338892212,0.06064501,115.08,115.06,2.33862979]
[1744338893207,0.06064501,115.08,115.06,11.03552979]
[1744338895006,0.06064501,115.08,115.06,2.33862979]
[1744338895212,0.06064501,115.08,115.06,0.06542979]
[1744338895611,8.6962,115.07,115.06,0.06542979]
[1744338896213,8.697,115.06,115.05,8.89]
[1744338896409,38.2,115.06,115.01,2.2919]
[1744338897112,38.2,115.09,115.01,2.2919]
[1744338897415,0.06505195,115.06,115.05,8.6971]
[1744338900014,0.06505195,115.06,115.04,0.05988936]
[1744338901313,0.06505195,115.06,115.05,8.6977]
[1744338901917,38.2,115.09,115.06,8.6963]
[1744338902214,38.2,115.09,115.05,4.3889]
[1744338902408,38.2,115.09,115.01,2.2919]
[1744338902608,38.2,115.09,115.01,4.4521]
[1744338902815,8.6974,115.06,115.03,8.6991]
[1744338903016,8.75770522,115.06,115.04,0.06070793]
[1744338903710,0.06030522,115.06,115.04,8.75920793]
[1744338904314,0.06030522,115.06,115.04,0.06070793]
[1744338905412,0.06030522,115.06,115.05,8.6977]
[1744338906721,0.06030522,115.06,115.04,8.75890793]
[1744338908422,0.06030522,115.06,115.05,8.6977]
[1744338909923,0.06030522,115.06,115.04,8.75880793]
[1744338911821,8.75750522,115.06,115.04,0.06070793]
[1744338912125,0.06030522,115.06,115.04,0.06070793]
[1744338912321,0.06030522,115.06,115.04,8.75910793]
[1744338913123,8.75740522,115.06,115.04,0.06070793]
[1744338913323,0.06030522,115.06,115.04,0.06070793]
[1744338913724,0.06030522,115.06,115.04,8.75900793]
[1744338914528,0.06030522,115.06,115.04,0.06070793]
[1744338915022,8.75730522,115.06,115.04,0.06070793]
[1744338915226,0.06030522,115.06,115.04,0.06070793]
[1744338915424,38.2,115.09,115.05,8.40686591]
[1744338915618,38.2,115.09,115.04,0.06070793]
[1744338915925,55.70779454,115.09,115.04,0.06070793]
[1744338916518,0.05836735,115.08,115.04,0.06070793]
[1744338916719,8.6977,115.05,115.04,0.06070793]
[1744338917020,46.8777,115.05,115.04,0.06070793]
[1744338923431,8.6998,115.03,114.99,8.7019]
[1744338924441,0.05751617,115.02,115.0,0.06579503]
[1744338924731,38.23751617,115.02,115.0,0.06579503]
[1744338925433,8.7008,115.01,115.0,0.06579503]
[1744338927839,49.25114014,115.02,114.95,2.3232]
[1744338928135,49.19362397,115.02,114.95,2.3232]
[1744338928537,8.7032,114.98,114.95,2.3232]
[1744338928737,46.9032,114.98,114.95,2.3232]
[1744338929035,46.96187027,114.98,114.95,2.38658716]
[1744338929638,8.7039,114.97,114.95,0.06338716]
[1744338929838,38.25867027,114.98,114.95,0.06338716]
[1744338930240,11.01362397,114.96,114.91,72.21438818]
[1744338930439,38.2,114.95,114.91,72.21438818]
[1744338930640,8.7067,114.94,114.91,72.21438818]
[1744338930841,38.2,114.95,114.89,4.4427]
[1744338931035,38.2,114.95,114.9,8.7089]
[1744338931339,8.7068,114.93,114.89,4.4427]
[1744338931534,0.05956922,114.94,114.91,0.06007316]
[1744338931739,8.7076,114.92,114.91,0.06007316]
[1744338932939,8.7099,114.89,114.88,45.87004588]
[1744338933435,46.9093,114.9,114.88,45.87004588]
[1744338933634,715.3498,114.99,114.88,45.87004588]
[1744338933635,38.2,114.93,114.88,45.87004588]
[1744338933832,38.2,114.92,114.88,45.87004588]
[1744338934043,46.908,114.92,114.88,45.87004588]
[1744338934245,0.06577811,114.91,114.89,0.05973221]
[1744338935948,8.77447811,114.91,114.89,0.05973221]
[1744338936446,0.06577811,114.91,114.89,0.05973221]
[1744338937151,8.77417811,114.91,114.89,0.05973221]
[1744338937949,8.7091,114.9,114.89,0.05973221]
[1744338946252,0.06577811,114.91,114.81,38.2]
[1744338946445,38.2,114.9,114.83,8.7139]
[1744338947259,0.06511886,114.88,114.85,0.06244246]
[1744338947450,46.912,114.87,114.85,0.06244246]
[1744338947754,38.2,114.87,114.85,0.06244246]
[1744338949360,8.7121,114.86,114.85,0.06244246]
[1744338953758,38.2,114.87,114.82,4.5034]
[1744338953961,38.2,114.87,114.78,55.85343082]
[1744338954255,38.2,114.87,114.79,13.2164]
[1744338954460,8.7156,114.82,114.79,13.2164]
[1744338954660,38.22,114.84,114.79,4.4994]
[1744338954857,8.7153,114.82,114.79,4.4994]
[1744338955158,38.22,114.82,114.79,4.4994]
[1744338955360,38.22,114.82,114.79,4.55815366]
[1744338955757,38.22,114.82,114.79,13.27495366]
[1744338955957,38.22,114.82,114.79,4.55815366]
[1744338956455,38.22,114.82,114.8,8.7163]
[1744338957860,38.22,114.82,114.79,13.27525366]
[1744338958060,46.9353,114.82,114.79,13.27525366]
[1744338958363,38.22,114.82,114.79,13.27525366]
[1744338958662,0.06372305,114.83,114.79,15.60908389]
[1744338960165,0.06372305,114.83,114.8,8.7165]
[1744338960361,38.22,114.87,114.81,11.05093023]
[1744338960560,38.22,114.87,114.82,2.122]
[1744338960864,46.9317,114.87,114.82,2.122]
[1744338961268,46.9317,114.87,114.84,8.7132]
[1744338961566,0.05515126,114.86,114.84,8.7132]
[1744338961761,0.05515126,114.86,114.84,11.0199]
[1744338962567,0.05515126,114.86,114.84,2.3067]
[1744338962765,0.05515126,114.86,114.83,8.76882352]
[1744338962766,0.05515126,114.86,114.83,0.05482352]
[1744338963263,8.7136,114.84,114.83,0.05482352]
[1744338973672,46.9336,114.84,114.83,0.05482352]
[1744338974974,0.05515126,114.86,114.83,8.52404837]
[1744338975180,0.05515126,114.86,114.84,8.46922485]
[1744338975480,0.05515126,114.86,114.83,0.05482352]
[1744338976274,8.7136,114.84,114.83,0.05482352]
[1744338976573,46.9136,114.84,114.83,0.05482352]
[1744338978681,46.9,114.84,114.78,45.87004588]
[1744338978873,11.05093023,114.81,114.78,45.87004588]
[1744338979179,8.7174,114.79,114.78,45.87004588]
[1744338979976,38.26561999,114.8,114.78,45.87004588]
[1744338980481,8.7174,114.79,114.78,45.87004588]
[1744338981283,8.7174,114.79,114.77,0.06016885]
[1744338984783,8.7182,114.78,114.77,0.06016885]
[1744338986087,38.26561999,114.8,114.77,0.06016885]
[1744338986991,8.7174,114.79,114.77,0.06016885]
[1744338987287,38.26561999,114.8,114.77,0.06016885]
[1744338987690,8.7182,114.78,114.77,0.06016885]
[1744338988990,8.7176,114.79,114.77,0.06016885]
[1744338989289,38.26561999,114.8,114.77,0.06016885]
[1744338989691,8.7174,114.79,114.77,0.06016885]
[1744338989883,38.26561999,114.8,114.77,0.06016885]
[1744338990284,8.7182,114.78,114.77,0.06016885]
[1744338993886,11.05093023,114.79,114.69,1.5167364]
[1744338994086,728.42,114.78,114.68,11.46751147]
[1744338994291,728.42,114.78,114.69,26.41277461]
[1744338994494,8.7218,114.75,114.69,17.90893023]
[1744338994792,728.42,114.78,114.71,11.05093023]
[1744338994993,728.42,114.78,114.72,8.49708574]
[1744338995191,0.05796346,114.76,114.73,8.77932229]
[1744338995592,8.7219,114.75,114.73,0.05712229]
[1744338995806,0.05796346,114.76,114.73,0.05712229]
[1744338996494,8.77896346,114.76,114.73,8.77962229]
[1744338996791,0.05796346,114.76,114.68,11.46751147]
[1744338997093,49.27093023,114.75,114.66,11.05093023]
[1744338997295,38.22,114.75,114.68,17.66663023]
[1744338997498,38.22,114.75,114.7,8.7245]
[1744338997796,728.42,114.78,114.7,11.05093023]
[1744338998096,8.78212008,114.74,114.71,8.7239]
[1744338998590,8.723,114.73,114.7,19.77583023]
[1744338998784,8.723,114.73,114.7,8.7249]
[1744338998986,0.05962008,114.74,114.69,38.22]
[1744338999293,8.78222008,114.74,114.69,38.22]
[1744338999595,0.05962008,114.74,114.69,38.22]
[1744338999894,8.723,114.73,114.7,8.7245]
[1744339000399,8.78212008,114.74,114.71,8.7244]
[1744339003694,0.05962008,114.74,114.73,8.7229]
[1744339003998,8.721,114.76,114.73,8.7229]
[1744339005190,8.78605713,114.76,114.73,8.7229]
[1744339006698,0.06505713,114.76,114.74,8.7219]
[1744339008103,0.06505713,114.76,114.73,8.7225]
[1744339008302,0.06505713,114.76,114.72,0.05729761]
[1744339008492,0.06505713,114.76,114.72,8.78049761]
[1744339008799,0.06505713,114.76,114.72,0.05729761]
[1744339009697,0.06505713,114.76,114.74,8.7221]
[1744339010401,0.06505713,114.76,114.73,15.1454]
[1744339011399,0.06505713,114.76,114.74,8.722]
[1744339011600,0.06505713,114.76,114.73,13.5030594]
[1744339011902,0.06505713,114.76,114.74,8.7221]
[1744339012102,0.06505713,114.76,114.73,6.4228]
[1744339012503,0.06505713,114.76,114.73,15.1453]
[1744339012696,8.78565713,114.76,114.73,15.1453]
[1744339015004,8.78565713,114.76,114.73,6.4228]
[1744339015605,8.78565713,114.76,114.73,15.1456]
[1744339015996,0.06505713,114.76,114.74,7.0802594]
[1744339016196,0.06505713,114.76,114.74,15.8020594]
[1744339016903,0.06505713,114.76,114.75,8.7213]
[1744339017396,8.7195,114.78,114.75,8.7213]
[1744339018303,8.78024549,114.78,114.75,8.7213]
[1744339018605,0.06074549,114.78,114.75,15.8015594]
[1744339019200,0.06074549,114.78,114.74,8.78142008]
[1744339019504,7.14100489,114.78,114.74,8.78142008]
[1744339019904,15.86050489,114.78,114.74,8.78142008]
[1744339020201,8.78024549,114.78,114.75,8.7211]
[1744339020402,38.18,114.81,114.76,15.61524894]
[1744339020601,8.7182,114.8,114.76,15.8004594]
[1744339020805,45.2602594,114.81,114.76,15.8004594]
[1744339021002,7.0802594,114.8,114.76,8.7202]
[1744339021198,8.7185,114.79,114.76,8.7202]
[1744339021401,8.7185,114.79,114.77,8.53302894]
[1744339021601,8.78167688,114.79,114.76,8.78001275]
[1744339021905,15.7995594,114.78,114.76,0.05981275]
[1744339022209,7.0802594,114.78,114.76,0.05981275]
[1744339022400,15.8000594,114.77,114.76,0.05981275]
[1744339024309,15.8002594,114.77,114.7,2.2169]
[1744339024504,7.0802594,114.73,114.71,8.55189406]
[1744339024695,7.0802594,114.73,114.7,2.2169]
[1744339024696,8.7236,114.72,114.7,2.2169]
[1744339025303,8.78714073,114.72,114.7,2.27626889]
[1744339025608,15.86740013,114.72,114.7,2.27626889]
[1744339025810,15.86740013,114.72,114.7,0.05936889]
[1744339027000,8.7244,114.71,114.7,0.05936889]
[1744339027203,15.8046594,114.71,114.7,0.05936889]
[1744339027804,8.7244,114.71,114.7,0.05936889]
[1744339028107,15.86770013,114.72,114.7,0.05936889]
[1744339028311,0.06354073,114.72,114.7,0.05936889]
[1744339028505,8.78734073,114.72,114.7,0.05936889]
[1744339028711,0.06354073,114.72,114.7,0.05936889]
[1744339029412,7.14380013,114.72,114.7,0.05936889]
[1744339029607,54.0046594,114.71,114.7,0.05936889]
[1744339032007,38.2,114.71,114.7,0.05936889]
[1744339032312,0.06354073,114.72,114.7,0.05936889]
[1744339032502,7.14380013,114.72,114.7,0.05936889]
[1744339032706,0.06354073,114.72,114.7,0.05936889]
[1744339033308,7.0802594,114.71,114.7,0.05936889]
[1744339033508,45.2802594,114.71,114.7,0.05936889]
[1744339033816,54.0046594,114.71,114.7,0.05936889]
[1744339034414,38.2,114.71,114.7,0.05936889]
[1744339034714,0.06354073,114.72,114.7,0.05936889]
[1744339035716,8.78784073,114.72,114.7,0.05936889]
[1744339038520,45.2402594,114.71,114.63,1.51736467]
[1744339038714,7.0802594,114.67,114.62,7.0802594]
[1744339039013,38.16,114.68,114.63,12.38808536]
[1744339039213,38.16,114.68,114.64,8.55680579]
[1744339039410,38.16,114.68,114.63,8.7304]
[1744339039411,8.7279,114.67,114.63,8.7304]
[1744339039716,0.05802809,114.66,114.64,0.06210229]
[1744339040316,8.78642809,114.66,114.64,0.06210229]
[1744339040507,0.05802809,114.66,114.64,0.06210229]
[1744339041006,8.729,114.65,114.64,0.06210229]
[1744339042512,46.909,114.65,114.64,0.06210229]
[1744339044711,49.26178847,114.65,114.57,38.18]
[1744339045013,49.26178847,114.65,114.57,44.858]
[1744339045214,49.26178847,114.65,114.58,8.734]
[1744339046020,0.05994153,114.63,114.58,8.734]
[1744339046223,8.7326,114.61,114.57,53.5928]
[1744339046512,8.7326,114.61,114.57,15.4128]
[1744339046814,0.06446544,114.6,114.57,4.492]
[1744339048317,8.79756544,114.6,114.57,4.492]
[1744339048823,0.06446544,114.6,114.57,13.2269]
[1744339049025,0.06446544,114.6,114.57,4.492]
[1744339049717,0.06446544,114.6,114.58,8.7338]
[1744339049916,0.06446544,114.6,114.57,4.492]
[1744339050423,0.06446544,114.6,114.57,13.2264]
[1744339050625,0.06446544,114.6,114.57,4.492]
[1744339051627,0.06446544,114.6,114.58,8.7337]
[1744339052527,8.79736544,114.6,114.57,4.492]
[1744339052725,0.06446544,114.6,114.57,4.492]
[1744339052927,8.7339,114.59,114.57,4.492]
[1744339054032,8.79756544,114.6,114.57,4.492]
[1744339054247,8.79756544,114.6,114.57,13.227]
[1744339054736,0.06446544,114.6,114.57,13.227]
[1744339055939,8.79726544,114.6,114.57,13.227]
[1744339057340,0.06446544,114.6,114.58,8.7343]
[1744339058340,0.06446544,114.6,114.57,4.492]
[1744339058543,38.18,114.62,114.57,4.54787676]
[1744339059041,38.18,114.62,114.58,8.7339]
[1744339059535,38.18,114.62,114.57,4.54787676]
[1744339059740,0.05610887,114.61,114.57,4.54787676]
[1744339060131,8.7343,114.58,114.57,0.05587676]
[1744339062035,8.7343,114.58,114.5,2.195]
[1744339062036,49.34663351,114.59,114.45,1334.9877868]
[1744339062249,11.08178847,114.57,114.48,85.58949748]
[1744339062438,38.2,114.56,114.49,11.08178847]
[1744339062743,46.9363,114.56,114.49,11.08178847]
[1744339062952,8.7363,114.56,114.53,8.7375]
[1744339063243,8.79728625,114.56,114.53,8.7375]
[1744339063443,38.2,114.58,114.54,2.3206]